bitfinex-derivatives/quotes_SOLF0:USTF0_20250325
["timestamp","ask_amount","ask_price","bid_price","bid_amount"]
[1742872888888,27.74,139.18,139.11,0.25187]
[1742872890081,7.1868,139.13,139.11,0.25187]
[1742872890278,0.04825777,139.16,139.11,0.25187]
[1742872890484,7.1871,139.12,139.11,0.25187]
[1742872892187,7.24117095,139.13,139.11,0.25187]
[1742872892579,0.05437095,139.13,139.11,0.25187]
[1742872893587,7.1871,139.12,139.11,0.25187]
[1742872894088,7.1893,139.08,139.04,2.0522]
[1742872894291,12.48703146,139.1,139.03,7.1914]
[1742872894495,29.34,139.09,139.01,1.9055]
[1742872894690,0.05249153,139.06,139.01,1.9055]
[1742872895092,0.05249153,139.06,139.01,31.6855]
[1742872895289,0.05249153,139.06,139.0,39.87567122]
[1742872895591,7.191,139.05,139.0,39.87567122]
[1742872895888,12.48703146,139.14,139.01,37.9696]
[1742872896094,7.1869,139.13,139.01,37.9696]
[1742872896291,12.48703146,139.16,139.01,37.9696]
[1742872896483,12.48703146,139.16,139.07,7.1894]
[1742872896687,7.1874,139.12,139.08,32.48]
[1742872897094,0.05338743,139.11,139.09,0.05214609]
[1742872898590,0.05338743,139.11,139.08,32.48]
[1742872898784,0.05338743,139.11,139.05,32.56]
[1742872898986,12.48703146,139.12,139.05,32.56]
[1742872899586,7.1894,139.08,139.05,32.56]
[1742872899791,7.1894,139.08,139.04,39.8111]
[1742872900093,7.1888,139.09,139.05,7.1907]
[1742872900991,7.1893,139.08,139.04,39.8111]
[1742872901190,7.1893,139.08,139.04,32.62]
[1742872901397,19.59464311,139.1,139.01,5.8496]
[1742872901592,19.54550359,139.1,139.02,7.1919]
[1742872901802,0.05041567,139.07,139.01,5.8496]
[1742872902692,7.1906,139.06,139.02,7.192]
[1742872903193,7.1913,139.04,139.01,5.8496]
[1742872903396,52.22550359,139.12,139.01,38.6896]
[1742872903697,0.04668845,139.04,139.01,38.6896]
[1742872903894,32.68,139.12,139.04,7.1911]
[1742872904095,0.05500688,139.09,139.04,7.1911]
[1742872904386,7.1896,139.08,139.04,7.1911]
[1742872905900,0.05500688,139.09,139.05,32.78]
[1742872906088,3.1798,139.13,139.05,32.78]
[1742872906296,0.05321905,139.08,139.05,32.78]
[1742872906996,0.05321905,139.08,139.06,7.1897]
[1742872907196,0.05321905,139.08,139.05,32.78]
[1742872907397,0.05321905,139.08,139.06,7.1902]
[1742872908599,0.05321905,139.08,139.02,32.64]
[1742872909202,7.19,139.07,139.03,7.1915]
[1742872909900,7.19,139.07,139.04,39.7512]
[1742872910205,7.1902,139.06,139.04,32.56]
[1742872910398,0.05321905,139.08,139.04,32.56]
[1742872910893,7.1902,139.07,139.04,32.56]
[1742872911305,0.05321905,139.08,139.04,39.7511]
[1742872912105,7.1897,139.07,139.04,32.56]
[1742872912697,0.05321905,139.08,139.04,32.56]
[1742872913400,7.1903,139.06,139.04,32.56]
[1742872913793,0.05321905,139.08,139.04,32.56]
[1742872914103,7.1901,139.07,139.04,32.56]
[1742872914403,0.05321905,139.08,139.04,32.56]
[1742872914597,7.1905,139.06,139.04,32.56]
[1742872917999,7.1907,139.05,139.04,32.56]
[1742872918399,0.05321905,139.08,139.04,32.56]
[1742872919602,0.05321905,139.08,139.05,7.1906]
[1742872919805,0.05321905,139.08,139.04,32.56]
[1742872920210,7.24271905,139.08,139.04,39.751]
[1742872920701,0.05321905,139.08,139.04,32.56]
[1742872920904,7.1897,139.07,139.04,32.56]
[1742872921102,0.05321905,139.08,139.04,32.56]
[1742872921502,0.05321905,139.08,139.07,7.1897]
[1742872922502,46.51750183,139.16,139.04,32.56]
[1742872922503,45.22990183,139.18,139.04,32.56]
[1742872922702,18.31070183,139.19,139.04,45.06990183]
[1742872922908,5.8008,139.19,139.04,45.06990183]
[1742872923104,5.8008,139.19,139.06,12.50990183]
[1742872923307,5.8008,139.19,139.13,7.1866]
[1742872923512,0.04772444,139.14,139.13,39.8666]
[1742872923707,5.8008,139.19,139.13,39.8666]
[1742872924010,0.04544689,139.15,139.13,32.68]
[1742872924304,7.1866,139.13,139.12,0.04955833]
[1742872924809,0.04544689,139.15,139.12,0.04955833]
[1742872927210,7.1866,139.13,139.12,0.04955833]
[1742872928506,7.1863,139.14,139.12,0.04955833]
[1742872928714,0.04544689,139.15,139.12,0.04955833]
[1742872929113,7.1866,139.13,139.12,0.04955833]
[1742872929612,0.04544689,139.15,139.12,0.04955833]
[1742872931315,7.1861,139.14,139.12,0.04955833]
[1742872931516,0.04544689,139.15,139.12,0.04955833]
[1742872932218,7.1866,139.13,139.12,0.04955833]
[1742872932813,26.70946746,139.13,139.02,39.87567122]
[1742872933007,32.4,139.12,139.03,5.8895]
[1742872933313,7.19,139.07,139.03,5.8895]
[1742872933714,32.4,139.12,139.04,32.36]
[1742872933917,0.05072302,139.06,139.04,32.36]
[1742872934115,32.4,139.12,139.04,32.36]
[1742872934420,7.1905,139.06,139.04,32.36]
[1742872934918,7.1899,139.07,139.04,32.36]
[1742872937315,0.05204867,139.09,139.04,32.36]
[1742872937519,7.1903,139.06,139.04,32.36]
[1742872938014,7.1899,139.07,139.04,39.5512]
[1742872939724,7.1903,139.06,139.04,39.5512]
[1742872940120,7.1903,139.06,139.04,32.36]
[1742872940322,7.1899,139.07,139.04,32.36]
[1742872941219,7.1894,139.08,139.04,32.36]
[1742872941418,0.05204867,139.09,139.04,32.36]
[1742872941621,32.1,139.17,139.04,32.36]
[1742872941814,51.62946746,139.17,139.05,4.071]
[1742872942813,0.04627545,139.12,139.1,0.04756363]
[1742872943123,51.62946746,139.17,139.1,0.04756363]
[1742872943318,0.04654698,139.12,139.1,0.04756363]
[1742872943518,51.62946746,139.17,139.1,0.04756363]
[1742872943721,0.05238307,139.12,139.1,0.04756363]
[1742872943922,51.62946746,139.17,139.1,0.04756363]
[1742872944112,0.0535671,139.12,139.1,7.23546363]
[1742872944317,0.04937332,139.12,139.1,0.04756363]
[1742872944516,1.9514,139.19,139.1,0.04756363]
[1742872944717,7.1846,139.17,139.14,7.1859]
[1742872945021,19.52946746,139.21,139.09,32.08]
[1742872945216,7.1848,139.17,139.13,7.1861]
[1742872945621,7.1848,139.17,139.09,32.08]
[1742872945825,0.05007869,139.16,139.14,0.04679372]
[1742872946322,0.05007869,139.16,139.14,7.23279372]
[1742872946519,7.23527869,139.16,139.14,0.04679372]
[1742872946822,0.05007869,139.16,139.14,0.04679372]
[1742872947525,0.05007869,139.16,139.15,7.1856]
[1742872948624,21.57136746,139.26,139.15,7.18]
[1742872948827,31.94,139.27,139.14,3.936]
[1742872949225,19.52946746,139.28,139.14,3.936]
[1742872949615,7.23153233,139.22,139.2,0.04695971]
[1742872949814,7.23153233,139.22,139.2,31.92695971]
[1742872950020,7.2353476,139.22,139.2,31.92695971]
[1742872950822,7.1825,139.21,139.2,31.92695971]
[1742872953716,0.0533476,139.22,139.2,31.92695971]
[1742872955524,0.0533476,139.22,139.2,39.10965971]
[1742872955723,0.0533476,139.22,139.2,31.92695971]
[1742872956228,0.0533476,139.22,139.2,0.04695971]
[1742872956922,7.1825,139.21,139.2,0.04695971]
[1742872958123,0.0533476,139.22,139.15,1.9601]
[1742872958321,19.58281506,139.22,139.15,1.9601]
[1742872958518,19.58281506,139.22,139.14,3.936]
[1742872958931,19.52946746,139.2,139.09,1.8691]
[1742872959127,31.58,139.19,139.09,33.4491]
[1742872959429,0.04844835,139.16,139.13,0.05158677]
[1742872959628,7.23374835,139.16,139.13,0.05158677]
[1742872959935,0.04844835,139.16,139.13,0.05158677]
[1742872960132,0.04844835,139.16,139.13,32.23158677]
[1742872960633,0.04844835,139.16,139.13,39.41798677]
[1742872960930,0.04844835,139.16,139.13,32.23158677]
[1742872961233,7.23384835,139.16,139.13,39.41818677]
[1742872961534,7.23384835,139.16,139.13,32.23158677]
[1742872962123,7.1857,139.15,139.13,32.23158677]
[1742872963832,7.1861,139.14,139.13,0.05158677]
[1742872966335,52.19791581,139.16,139.08,2.0546]
[1742872966527,19.52946746,139.14,139.05,291.28]
[1742872966722,19.52946746,139.14,139.05,258.64]
[1742872966926,7.1896,139.08,139.05,258.64]
[1742872967527,7.24401917,139.08,139.05,258.69168701]
[1742872968436,0.05441917,139.08,139.05,258.69168701]
[1742872969935,0.05441917,139.08,139.05,265.88228701]
[1742872970339,0.05441917,139.08,139.05,258.69168701]
[1742872970540,0.05441917,139.08,139.06,7.1898]
[1742872972639,0.05441917,139.08,139.05,258.69168701]
[1742872973142,0.05441917,139.08,139.05,265.88238701]
[1742872973536,0.05441917,139.08,139.05,258.69168701]
[1742872974241,0.05441917,139.08,139.06,7.1902]
[1742872974439,7.24371917,139.08,139.05,258.69168701]
[1742872974641,7.24371917,139.08,139.05,0.05168701]
[1742872974952,7.24371917,139.08,139.05,7.24208701]
[1742872975145,0.05441917,139.08,139.05,0.05168701]
[1742872975542,0.05441917,139.08,139.07,7.1897]
[1742872978740,7.187,139.13,139.1,7.1881]
[1742872979245,7.187,139.13,139.08,31.96]
[1742872979542,7.187,139.13,139.09,7.1884]
[1742872979747,7.1862,139.14,139.08,31.96]
[1742872980044,0.05135741,139.12,139.11,7.1873]
[1742872981643,0.05135741,139.12,139.1,0.04774517]
[1742872982237,7.1876,139.11,139.1,0.04774517]
[1742872984843,51.24082487,139.12,138.98,654.63567122]
[1742872985046,1.9853,139.1,138.99,4.0073]
[1742872985241,1.9853,139.1,139.02,33.5821]
[1742872985939,1.9853,139.1,139.02,31.66]
[1742872985940,7.191,139.05,139.02,31.66]
[1742872986146,7.191,139.05,139.02,0.04537017]
[1742872986346,7.191,139.05,139.02,31.68537017]
[1742872986546,7.1914,139.04,139.02,31.68537017]
[1742872987643,7.1908,139.05,139.02,38.87767017]
[1742872990049,7.1905,139.06,139.03,7.1917]
[1742872990651,7.24480587,139.07,139.04,7.1912]
[1742872992149,0.05490587,139.07,139.02,31.68537017]
[1742872993753,0.05490587,139.07,139.05,7.1905]
[1742872993949,0.05490587,139.07,139.06,31.36]
[1742872996653,0.05490587,139.07,139.05,7.23624038]
[1742872996853,0.05490587,139.07,139.05,38.39624038]
[1742872997257,7.24460587,139.07,139.05,31.20574038]
[1742872997956,7.1902,139.06,139.05,31.20574038]
[1742872998461,0.05490587,139.07,139.05,31.20574038]
[1742872998963,0.05490587,139.07,139.05,38.39624038]
[1742872999457,38.31490587,139.07,138.96,39.87567122]
[1742872999654,1.9211,139.07,138.97,31.06]
[1742872999851,35.1302,139.11,138.98,2.0281]
[1742873000052,7.1908,139.05,138.98,2.0281]
[1742873000356,37.0513,139.11,138.98,2.0281]
[1742873000559,7.1907,139.05,138.99,7.1935]
[1742873000862,7.1907,139.05,139.0,31.04]
[1742873001265,0.05309255,139.04,139.0,31.04]
[1742873001966,7.24439255,139.04,139.0,31.04]
[1742873002563,0.05309255,139.04,139.0,38.2333]
[1742873002763,0.05309255,139.04,139.0,31.04]
[1742873003164,7.1921,139.03,139.0,31.04]
[1742873003466,0.05309255,139.04,139.0,31.04]
[1742873004765,7.1918,139.03,139.0,31.04]
[1742873004964,0.05309255,139.04,139.0,31.04]
[1742873005156,7.24459255,139.04,139.0,38.2331]
[1742873005764,7.24459255,139.04,139.01,7.1928]
[1742873006067,7.24459255,139.04,139.0,31.04]
[1742873006567,7.1918,139.03,139.0,31.04]
[1742873006762,0.05309255,139.04,139.0,31.04]
[1742873006962,3.9933,139.11,139.0,31.04]
[1742873007166,7.19,139.07,139.03,7.1915]
[1742873007369,7.19,139.07,139.04,30.72]
[1742873007562,7.19,139.07,139.03,7.1915]
[1742873007758,3.9933,139.11,139.04,30.7]
[1742873008163,0.05265644,139.09,139.06,0.05420055]
[1742873008469,7.1897,139.07,139.06,0.05420055]
[1742873012167,7.1902,139.06,139.05,30.58]
[1742873013065,0.05265644,139.09,138.98,2.0281]
[1742873013264,3.9933,139.11,138.99,30.46]
[1742873013463,0.04999256,139.05,138.99,30.46]
[1742873013673,7.24109256,139.05,139.02,7.1922]
[1742873013970,0.04999256,139.05,139.03,30.46]
[1742873014265,0.04999256,139.05,139.04,30.42]
[1742873015070,7.24069256,139.05,139.04,30.42]
[1742873015263,7.24069256,139.05,139.04,30.36]
[1742873015459,0.04999256,139.05,139.04,30.36]
[1742873016470,0.04999256,139.05,139.04,37.5513]
[1742873017865,0.1485,139.15,139.04,30.36]
[1742873018066,0.1485,139.15,139.05,4.1102]
[1742873018463,7.1871,139.12,139.08,7.189]
[1742873018668,0.1485,139.15,139.09,30.26]
[1742873018869,12.50454355,139.14,139.09,30.26]
[1742873019063,0.05311833,139.13,139.11,0.0467004]
[1742873019267,0.05311833,139.13,139.09,30.26]
[1742873019874,7.188,139.11,139.09,30.26]
[1742873020477,7.188,139.11,139.09,30.28007814]
[1742873021380,0.05311833,139.13,139.09,30.28007814]
[1742873022080,7.1881,139.11,139.09,30.28007814]
[1742873022378,0.05311833,139.13,139.09,30.28007814]
[1742873022981,7.188,139.11,139.09,30.28007814]
[1742873023175,0.05311833,139.13,139.09,30.28007814]
[1742873023671,7.1882,139.1,139.09,30.28007814]
[1742873025785,0.05311833,139.13,139.09,37.46877814]
[1742873026292,0.05311833,139.13,139.09,30.28007814]
[1742873026987,0.05311833,139.13,139.1,7.1881]
[1742873027188,0.05311833,139.13,139.09,30.28007814]
[1742873027489,0.05311833,139.13,139.11,7.1876]
[1742873028182,0.05311833,139.13,139.1,7.1879]
[1742873028682,0.05311833,139.13,139.11,7.1874]
[1742873030288,0.05311833,139.13,139.12,7.1871]
[1742873030687,7.1846,139.17,139.1,3.9342]
[1742873030886,46.77175517,139.23,139.11,1.877]
[1742873031387,19.53923485,139.22,139.11,1.877]
[1742873031779,0.05285943,139.18,139.15,0.05072286]
[1742873031981,7.1845,139.17,139.15,0.05072286]
[1742873033081,7.23715943,139.18,139.15,0.05072286]
[1742873033289,0.05285943,139.18,139.15,0.05072286]
[1742873034387,7.1848,139.17,139.15,0.05072286]
[1742873034989,7.1851,139.16,139.15,0.05072286]
[1742873040492,7.1846,139.17,139.15,0.05072286]
[1742873041092,7.1851,139.16,139.15,0.05072286]
[1742873042890,0.05285943,139.18,139.15,0.05072286]
[1742873043693,7.1846,139.17,139.15,0.05072286]
[1742873045797,7.1846,139.17,139.15,7.23632286]
[1742873047698,0.05285943,139.18,139.15,7.23632286]
[1742873047699,0.05285943,139.18,139.17,7.1845]
[1742873047995,12.49112967,139.27,139.16,3.9111]
[1742873048202,12.49112967,139.27,139.17,1.8983]
[1742873048399,7.1817,139.23,139.19,7.183]
[1742873048703,12.49112967,139.29,139.18,29.18]
[1742873048899,7.1807,139.25,139.22,7.1817]
[1742873049091,7.2346495,139.25,139.23,29.16]
[1742873049802,0.0539495,139.25,139.23,29.16]
[1742873050598,7.1791,139.28,139.23,29.16]
[1742873050898,7.1791,139.28,139.23,31.141]
[1742873051203,7.1786,139.29,139.23,31.141]
[1742873051504,14.52962967,139.33,139.23,31.141]
[1742873051801,0.05158531,139.29,139.27,0.05487845]
[1742873052001,7.1789,139.28,139.27,0.05487845]
[1742873054207,7.1809,139.24,139.23,29.16]
[1742873055306,12.49112967,139.29,139.17,2.0443]
[1742873055504,0.04598278,139.25,139.23,7.1813]
[1742873055699,29.08,139.31,139.23,36.2213]
[1742873055901,0.04828869,139.25,139.23,36.26973157]
[1742873056104,7.1796,139.27,139.23,36.26973157]
[1742873056302,0.05274349,139.25,139.24,7.1809]
[1742873056606,7.179,139.28,139.23,29.08843157]
[1742873056811,7.179,139.28,139.24,4.0207]
[1742873057005,7.179,139.28,139.25,7.1804]
[1742873057700,7.23067841,139.28,139.25,7.22626487]
[1742873058408,7.1794,139.27,139.25,0.04586487]
[1742873058611,0.05167841,139.28,139.25,0.04586487]
[1742873059010,7.1799,139.26,139.25,0.04586487]
[1742873059215,0.05167841,139.28,139.25,0.04586487]
[1742873059806,7.1797,139.27,139.25,0.04586487]
[1742873060205,7.23077841,139.28,139.25,7.22616487]
[1742873060510,7.23077841,139.28,139.25,0.04586487]
[1742873060511,0.05167841,139.28,139.25,0.04586487]
[1742873061013,0.05167841,139.28,139.26,7.1798]
[1742873061215,0.05167841,139.28,139.27,28.86]
[1742873061709,7.23057841,139.28,139.26,7.1798]
[1742873062008,7.23057841,139.28,139.27,28.84]
[1742873063219,0.05167841,139.28,139.27,28.84]
[1742873063410,0.05167841,139.28,139.27,36.0194]
[1742873063807,41.29112967,139.38,139.27,28.84]
[1742873064015,12.49112967,139.36,139.27,28.84]
[1742873064713,7.1783,139.3,139.27,28.84]
[1742873065211,7.1783,139.3,139.27,28.88592082]
[1742873065516,7.1785,139.29,139.27,28.88592082]
[1742873071018,7.1789,139.28,139.27,0.04592082]
[1742873076628,7.1784,139.29,139.27,0.04592082]
[1742873076816,0.04883776,139.3,139.27,0.04592082]
[1742873077023,7.22693776,139.3,139.27,7.22522082]
[1742873077326,0.04883776,139.3,139.27,7.22522082]
[1742873078121,7.22693776,139.3,139.27,7.22522082]
[1742873078329,7.22693776,139.3,139.28,28.38]
[1742873078823,7.1784,139.29,139.28,28.38]
[1742873080430,7.22683776,139.3,139.28,28.38]
[1742873080730,0.04883776,139.3,139.28,28.38]
[1742873082426,7.1784,139.29,139.28,28.38]
[1742873088134,7.1789,139.28,139.27,0.04592082]
[1742873095339,7.1788,139.29,139.27,0.04592082]
[1742873095635,0.04883776,139.3,139.27,0.04592082]
[1742873095934,0.04883776,139.3,139.27,7.22492082]
[1742873096533,0.04883776,139.3,139.28,7.1786]
[1742873096932,0.04883776,139.3,139.27,7.22512082]
[1742873098441,7.22693776,139.3,139.28,27.86]
[1742873098635,0.04883776,139.3,139.28,27.86]
[1742873099232,0.04883776,139.3,139.29,7.1784]
[1742873103347,0.04883776,139.3,139.28,35.0386]
[1742873103546,0.04883776,139.3,139.28,27.86]
[1742873104563,0.04883776,139.3,139.29,7.1784]
[1742873105456,0.04883776,139.3,139.28,35.0386]
[1742873105656,0.04883776,139.3,139.27,0.04592082]
[1742873106255,7.1789,139.28,139.27,0.04592082]
[1742873109052,7.1814,139.23,139.22,298.47567122]
[1742873109254,7.1814,139.23,139.22,39.87567122]
[1742873109856,7.1826,139.21,139.18,27.7]
[1742873110060,12.49112967,139.29,139.18,27.7]
[1742873110358,40.21112967,139.3,139.18,27.7]
[1742873110657,0.04852521,139.25,139.22,0.04851765]
[1742873110856,0.04852521,139.25,139.23,27.68]
[1742873111461,0.04852521,139.25,139.23,31.7736]
[1742873111856,0.04852521,139.25,139.24,7.1809]
[1742873116562,0.04852521,139.25,139.23,38.9549]
[1742873116955,0.04852521,139.25,139.23,27.68]
[1742873117161,0.04852521,139.25,139.23,34.8614]
[1742873119657,7.22902521,139.25,139.23,34.8614]
[1742873120259,7.22902521,139.25,139.23,27.68]
[1742873120463,0.04852521,139.25,139.23,27.68]
[1742873120959,7.22912521,139.25,139.23,27.68]
[1742873121555,0.04852521,139.25,139.23,27.68]
[1742873122058,0.04852521,139.25,139.23,34.8612]
[1742873125270,0.04852521,139.25,139.24,7.1809]
[1742873126868,0.04852521,139.25,139.23,34.8612]
[1742873129868,0.04852521,139.25,139.24,7.1809]
[1742873130869,0.04852521,139.25,139.23,34.8612]
[1742873131568,0.04852521,139.25,139.24,7.1809]
[1742873131773,4.0272,139.33,139.23,31.6424]
[1742873131971,4.0272,139.33,139.23,33.5235]
[1742873132275,27.693,139.38,139.24,12.49112967]
[1742873132469,1.9604,139.37,139.24,12.49112967]
[1742873132667,7.1761,139.34,139.3,7.1777]
[1742873132870,0.0532213,139.32,139.3,27.32]
[1742873133069,1.9604,139.37,139.3,27.32]
[1742873133272,0.05527691,139.32,139.31,7.1773]
[1742873133471,7.1755,139.35,139.31,7.1773]
[1742873133777,0.04977646,139.33,139.3,27.37156918]
[1742873133969,0.04977646,139.33,139.32,7.1768]
[1742873135871,0.04977646,139.33,139.31,7.1771]
[1742873136679,0.04977646,139.33,139.3,27.37156918]
[1742873136680,0.04977646,139.33,139.32,7.1768]
[1742873138581,0.04977646,139.33,139.31,7.1771]
[1742873139076,0.04977646,139.33,139.3,27.37156918]
[1742873139381,0.04977646,139.33,139.3,34.54926918]
[1742873139978,7.1754,139.35,139.3,27.37156918]
[1742873140181,27.16,139.42,139.3,27.32]
[1742873140482,27.16,139.42,139.33,7.1762]
[1742873140781,27.16,139.42,139.34,27.14]
[1742873141181,7.1743,139.37,139.34,34.3157]
[1742873141484,0.05398691,139.39,139.37,0.04831572]
[1742873141677,7.174,139.38,139.34,34.3157]
[1742873141877,7.174,139.38,139.37,0.04568805]
[1742873146083,7.22768691,139.39,139.37,0.04568805]
[1742873146385,0.05398691,139.39,139.37,0.04568805]
[1742873147280,0.05398691,139.39,139.38,27.12]
[1742873148783,1.9832,139.46,139.38,27.12]
[1742873149288,7.1716,139.43,139.39,7.1728]
[1742873149687,1.9832,139.46,139.38,27.12]
[1742873149883,7.172,139.42,139.38,34.2936]
[1742873150089,7.172,139.42,139.41,0.04819401]
[1742873152784,7.21910898,139.43,139.41,0.04819401]
[1742873154086,0.04770898,139.43,139.42,27.0]
[1742873156987,0.04770898,139.43,139.42,34.1717]
[1742873157188,0.04770898,139.43,139.42,27.0]
[1742873157493,7.21880898,139.43,139.42,27.0]
[1742873162589,7.1717,139.42,139.41,26.88819401]
[1742873163897,7.1717,139.42,139.41,0.04819401]
[1742873170096,7.1747,139.36,139.35,285.1]
[1742873170291,7.1747,139.36,139.35,258.34]
[1742873170493,1.9311,139.42,139.35,258.34]
[1742873171200,7.174,139.38,139.37,0.05493832]
[1742873172798,7.22641593,139.4,139.37,0.05493832]
[1742873173799,0.05341593,139.4,139.38,26.72]
[1742873175103,7.22621593,139.4,139.38,26.72]
[1742873175999,0.05341593,139.4,139.38,33.8935]
[1742873178609,0.05341593,139.4,139.39,7.1732]
[1742873181413,1.9213,139.48,139.38,26.72]
[1742873181609,1.9213,139.48,139.39,5.8837]
[1742873181912,1.9213,139.48,139.41,7.1719]
[1742873182212,1.9213,139.48,139.42,26.72]
[1742873182607,0.04800364,139.46,139.44,0.05412708]
[1742873183005,7.1701,139.45,139.44,0.05412708]
[1742873205426,0.04800364,139.46,139.44,0.05412708]
[1742873206332,7.21780364,139.46,139.44,0.05412708]
[1742873208724,0.04800364,139.46,139.44,0.05412708]
[1742873209130,0.04800364,139.46,139.44,26.75412708]
[1742873209331,0.04800364,139.46,139.44,33.92442708]
[1742873210933,0.04800364,139.46,139.44,26.75412708]
[1742873211531,7.1701,139.45,139.44,26.75412708]
[1742873214535,7.1701,139.45,139.44,0.05412708]
[1742873216137,7.21790364,139.46,139.44,0.05412708]
[1742873217331,0.04800364,139.46,139.44,0.05412708]
[1742873217736,0.04800364,139.46,139.44,7.22452708]
[1742873218133,0.04800364,139.46,139.45,26.7]
[1742873218334,0.04800364,139.46,139.45,33.8701]
[1742873219437,0.04800364,139.46,139.45,26.7]
[1742873219937,7.21760364,139.46,139.45,26.7]
[1742873224541,7.1701,139.45,139.44,0.05412708]
[1742873224933,0.04800364,139.46,139.37,40.64312549]
[1742873225138,7.173,139.4,139.37,13.94312549]
[1742873225343,7.173,139.4,139.37,3.9697]
[1742873226145,7.2262423,139.4,139.37,4.02075914]
[1742873226644,7.2262423,139.4,139.37,11.19465914]
[1742873227344,7.1733,139.39,139.37,4.02075914]
[1742873227546,7.1733,139.39,139.37,30.72075914]
[1742873229440,7.2261423,139.4,139.37,37.89485914]
[1742873231854,7.2261423,139.4,139.37,30.72075914]
[1742873232148,0.0532423,139.4,139.37,30.72075914]
[1742873232844,7.1735,139.39,139.37,30.72075914]
[1742873234451,7.1737,139.38,139.37,0.05105914]
[1742873239057,7.1756,139.35,139.31,39.6594]
[1742873239955,7.1756,139.35,139.31,12.9594]
[1742873240154,0.04567301,139.34,139.32,0.0534268]
[1742873241351,14.53772967,139.42,139.32,0.0534268]
[1742873241556,28.7666,139.42,139.31,32.4823]
[1742873242359,14.3395,139.46,139.31,32.4823]
[1742873242557,0.0545533,139.38,139.35,0.04875288]
[1742873242758,28.82702967,139.46,139.36,26.72]
[1742873242957,28.82702967,139.46,139.37,7.1739]
[1742873243462,7.1727,139.41,139.37,7.1739]
[1742873243659,28.82702967,139.46,139.36,33.8947]
[1742873243860,0.04870092,139.4,139.38,0.04555679]
[1742873244161,28.82702967,139.46,139.38,0.04555679]
[1742873244357,0.05457171,139.4,139.38,0.04555679]
[1742873244558,28.82702967,139.46,139.38,0.04555679]
[1742873244759,41.20752967,139.46,139.38,0.04555679]
[1742873244957,0.05408896,139.43,139.38,0.04555679]
[1742873245165,7.1718,139.42,139.38,7.21885679]
[1742873245666,7.1726,139.41,139.38,0.04555679]
[1742873245966,0.05408896,139.43,139.38,0.04555679]
[1742873246867,7.1725,139.41,139.38,0.04555679]
[1742873247367,7.1725,139.41,139.38,7.21915679]
[1742873248275,7.1719,139.42,139.38,7.21915679]
[1742873249165,7.1722,139.41,139.38,7.21915679]
[1742873249365,0.05408896,139.43,139.38,0.04555679]
[1742873249770,0.05408896,139.43,139.42,7.1717]
[1742873249961,0.05408896,139.43,139.42,33.8717]
[1742873251371,0.05408896,139.43,139.42,26.7]
[1742873252374,0.05408896,139.43,139.42,33.8717]
[1742873254473,1.9003,139.5,139.43,7.1709]
[1742873254673,7.1695,139.47,139.43,7.1709]
[1742873255275,7.1695,139.47,139.44,7.1706]
[1742873255569,0.0537267,139.46,139.44,7.21817991]
[1742873255776,0.0537267,139.46,139.44,0.04757991]
[1742873256475,7.2233267,139.46,139.44,0.04757991]
[1742873257673,7.2233267,139.46,139.44,7.21817991]
[1742873257867,0.0537267,139.46,139.44,0.04757991]
[1742873258583,7.1701,139.45,139.44,0.04757991]
[1742873258878,0.0537267,139.46,139.44,0.04757991]
[1742873259177,7.2236267,139.46,139.44,0.04757991]
[1742873261082,7.1701,139.45,139.44,0.04757991]
[1742873271790,0.0537267,139.46,139.39,1.8851]
[1742873271791,7.1722,139.42,139.39,26.7]
[1742873272692,7.1723,139.41,139.39,26.7]
[1742873272988,7.1723,139.41,139.39,26.74647093]
[1742873274381,7.1727,139.4,139.39,26.74647093]
[1742873274995,7.1724,139.41,139.39,26.74647093]
[1742873275686,7.1727,139.4,139.39,26.74647093]
[1742873275891,7.1727,139.4,139.39,0.04647093]
[1742873277698,7.22370139,139.42,139.39,7.21957093]
[1742873278694,0.05190139,139.42,139.39,0.04647093]
[1742873279594,7.1725,139.41,139.39,0.04647093]
[1742873279995,0.05190139,139.42,139.39,0.04647093]
[1742873282295,0.05190139,139.42,139.4,7.1723]